fUST/lending_fUST_20250622
["ID","MTS","AMOUNT","RATE_DAILY","PERIOD"]
[366911157,1750567833253,-1554.0,0.00024,14]
[366911159,1750567833264,-524.02598587,0.00024,3]
[366911160,1750567833275,-524.02598587,0.00024,3]
[366911162,1750567833287,-158.65,0.00024,2]
[366911163,1750567833297,-364.381,0.00024009,5]
[366911165,1750567833307,-178.2905861,0.00024009,5]
[366911166,1750567833317,-460.0,0.00024009,2]
[366911167,1750567833327,-460.0,0.00024024,2]
[366911168,1750567833337,-134.8209099,0.00024024,2]
[366911169,1750567833350,-325.1790901,0.00024024,2]
[366911170,1750567833360,-502.19364887,0.00024024,2]
[366911171,1750567833369,-417.74360018,0.00024025,2]
[366911172,1750567833379,-152.61247216,0.00024026,2]
[366911173,1750567833389,-207.4,0.00024026,2]
[366911174,1750567833398,-800.0,0.00024026,2]
[366911175,1750567833408,-800.0,0.00024026,2]
[366911176,1750567833417,-800.0,0.00024026,2]
[366911177,1750567833427,-800.0,0.00024026,2]
[366911178,1750567833437,-800.0,0.00024026,2]
[366911179,1750567833447,-206.46577121,0.00024026,2]
[366911180,1750567833456,-800.0,0.00024026,2]
[366911181,1750567833466,-800.0,0.00024026,2]
[366911182,1750567833476,-800.0,0.00024026,2]
[366911183,1750567833486,-800.0,0.00024026,2]
[366911184,1750567833496,-365.65676755,0.00024026,2]
[366911185,1750567833506,-151.0,0.00024026,2]
[366911186,1750567833516,-151.0,0.00024026,2]
[366911187,1750567833526,-151.0,0.00024026,2]
[366911188,1750567833536,-277.99210031,0.00024026,2]
[366911189,1750567833546,-225.46018012,0.00024026,2]
[366911190,1750567833556,-25000.0,0.00024026,2]
[366911191,1750567833566,-244.36522053,0.00024038,10]
[366911192,1750567833576,-452.02296236,0.00024072,2]
[366911193,1750567833587,-500.0,0.00024072,2]
[366911194,1750567833597,-210.44710927,0.00024072,2]
[366911195,1750567833607,-500.0,0.00024072,2]
[366911196,1750567833617,-500.0,0.00024072,2]
[366911197,1750567833626,-500.0,0.00024072,2]
[366911198,1750567833636,-500.0,0.00024072,2]
[366911199,1750567833646,-500.0,0.00024072,2]
[366911200,1750567833655,-508.11809492,0.00024073,2]
[366911201,1750567833665,-502.16522696,0.00024073,2]
[366911202,1750567833674,-500.0,0.00024073,2]
[366911205,1750567833684,-502.2339066,0.00024073,2]
[366911209,1750567833694,-500.0,0.00024073,2]
[366911210,1750567833703,-523.12757653,0.00024073,2]
[366911213,1750567833714,-478.25993787,0.00024073,2]
[366911215,1750567833723,-466.33194736,0.00024073,2]
[366911217,1750567833732,-506.91075946,0.00024073,2]
[366911219,1750567833742,-500.0,0.00024073,2]
[366911221,1750567833751,-510.85533082,0.00024073,2]
[366911222,1750567833762,-1154.71,0.00024073,2]
[366911223,1750567833773,-178.0,0.00024075,2]
[366911225,1750567833784,-244.36522053,0.00024107,10]
[366911227,1750567833793,-250.63982168,0.0002413,2]
[366911228,1750567833805,-396.71424003,0.00024133,2]
[366911229,1750567833815,-460.0,0.00024172,2]
[366911230,1750567833824,-244.36522053,0.00024176,10]
[366911231,1750567833835,-244.36522053,0.00024245,10]
[366911232,1750567833845,-244.36522053,0.00024314,10]
[366911233,1750567833854,-250.63982168,0.00024335,2]
[366911234,1750567833864,-500.0,0.0002434,2]
[366911235,1750567833874,-244.36522053,0.00024383,11]
[366911236,1750567833885,-244.36522053,0.00024452,11]
[366911237,1750567833894,-396.71424003,0.00024455,2]
[366911238,1750567833904,-244.36522053,0.00024521,11]
[366911239,1750567833914,-250.63982168,0.00024539,2]
[366911240,1750567833924,-25000.0,0.00024574,2]
[366911241,1750567833934,-178.0,0.00024579,2]
[366911242,1750567833944,-244.36522053,0.0002459,11]
[366911243,1750567833953,-151.7636773,0.00024621,2]
[366911244,1750567833963,-4536.78554773,0.0002465,2]
[366911245,1750567833973,-460.0,0.00024657,2]
[366911246,1750567833983,-300.0,0.00024657,4]
[366911247,1750567833994,-383.98952694,0.00024657,4]
[366911248,1750567834004,-305.94363018,0.00024658,2]
[366911249,1750567834022,-244.36522053,0.00024659,11]
[366911250,1750567834034,-396.71424003,0.00024676,2]
[366911251,1750567834045,-567.706118,0.00024705,4]
[366911252,1750567834056,-244.36522053,0.00024728,11]
[366911253,1750567834067,-250.63982168,0.00024743,2]
[366911254,1750567834077,-244.36522053,0.00024797,11]
[366911255,1750567834088,-2308.00530306,0.000248,2]
[366911256,1750567834098,-244.36522053,0.00024866,12]
[366911257,1750567834109,-490.36488039,0.00024873,2]
[366911258,1750567834123,-500.0,0.00024873,2]
[366911259,1750567834133,-500.0,0.00024873,2]
[366911260,1750567834143,-502.95689799,0.00024873,2]
[366911261,1750567834154,-500.0,0.00024873,2]
[366911262,1750567834164,-586.64292108,0.00024873,2]
[366911263,1750567834173,-500.0,0.00024873,2]
[366911264,1750567834183,-600.0,0.00024873,2]
[366911265,1750567834195,-500.5918611,0.00024873,2]
[366911266,1750567834205,-540.64095037,0.00024873,2]
[366911267,1750567834215,-500.0,0.00024873,2]
[366911268,1750567834225,-500.0,0.00024873,2]
[366911269,1750567834236,-500.0,0.00024873,2]
[366911270,1750567834246,-500.0,0.00024873,2]
[366911271,1750567834256,-151.0,0.00024875,2]
[366911272,1750567834267,-151.0,0.00024875,2]
[366911273,1750567834277,-1000.0,0.00024888,2]
[366911274,1750567834288,-800.57,0.0002489,3]
[366911275,1750567834298,-9410.92952263,0.000249,2]
[366911276,1750567834308,-10267.41441538,0.000249,2]
[366911277,1750567834319,-113431.09288747,0.000249,2]
[366911311,1750567838674,-9148.02143983,0.00024026,2]
[366911313,1750567838684,-14873.23223253,0.000249,2]
[366911315,1750567838695,-248.21903265,0.00024902,2]
[366911317,1750567838704,-151.0,0.00024902,2]
[366911320,1750567838714,-199.78805088,0.0002493,2]
[366911321,1750567838724,-244.36522053,0.00024934,12]
[366911323,1750567838734,-250.63982168,0.00024947,2]
[366911325,1750567838744,-128304.32512,0.00024963,2]
[366911328,1750567838753,-2308.00530306,0.00024963,2]
[366911331,1750567838763,-160.4038627,0.00024968,2]
[366911333,1750567838773,-506.0514979,0.00024973,2]
[366911336,1750567838783,-447.0842317,0.00024973,2]
[366911338,1750567838793,-502.67860726,0.00024973,2]
[366911340,1750567838802,-504.07782939,0.00024973,2]
[366911343,1750567838812,-512.10036902,0.00024973,2]
[366911344,1750567838822,-489.48496678,0.00024973,2]
[366911346,1750567838832,-507.76290015,0.00024973,2]
[366911348,1750567838841,-500.0,0.00024973,2]
[366911351,1750567838851,-500.0,0.00024973,2]
[366911353,1750567838860,-500.0,0.00024973,2]
[366911354,1750567838870,-500.0,0.00024973,2]
[366911356,1750567838879,-500.0,0.00024973,2]
[366911359,1750567838889,-500.0,0.00024973,2]
[366911360,1750567838899,-328.61450839,0.00024973,2]
[366911363,1750567838909,-500.0,0.00024973,2]
[366911365,1750567838919,-500.0,0.00024973,2]
[366911367,1750567838929,-150.0,0.00024973,2]
[366911368,1750567838939,-500.62366045,0.00024973,2]
[366911371,1750567838949,-152.24135855,0.00024973,2]
[366911373,1750567838959,-500.0,0.00024973,2]
[366911375,1750567838969,-500.0,0.00024973,2]
[366911377,1750567838978,-500.0,0.00024973,2]
[366911379,1750567838988,-500.0,0.00024973,2]
[366911381,1750567838997,-500.0,0.00024973,2]
[366911382,1750567839007,-500.0,0.00024973,2]
[366911384,1750567839017,-500.0,0.00024973,2]
[366911387,1750567839027,-500.0,0.00024973,2]
[366911388,1750567839036,-500.0,0.00024973,2]
[366911390,1750567839046,-500.0,0.00024973,2]
[366911392,1750567839057,-500.0,0.0002498,7]
[366911393,1750567839067,-500.0,0.00024989,30]
[366911394,1750567839077,-160.0,0.00024989,2]
[366911395,1750567839087,-460.0,0.00024989,2]
[366911396,1750567839097,-434.94553875,0.00024989,2]
[366911397,1750567839107,-256608.65024,0.0002499,2]
[366911398,1750567839120,-4616.01060612,0.0002499,2]
[366911399,1750567839130,-579.37,0.00024995,5]
[366911400,1750567839140,-165.0,0.00025,7]
[366911401,1750567839149,-96161.17654784,0.00025,2]
[366911404,1750567839161,-273.74915806,0.00025,7]
[366911406,1750567839171,-3412.86,0.00025,7]
[366911408,1750567839180,-9928.23992042,0.00025,14]
[366911410,1750567839191,-524.02598587,0.00025,10]
[366911411,1750567839200,-244.36522053,0.00025003,12]
[366911412,1750567839211,-975.175,0.00025028,2]
[366911413,1750567839221,-654.0,0.00025028,2]
[366911414,1750567839231,-2161.0,0.00025028,2]
[366911415,1750567839241,-160.0,0.00025053,2]
[366911416,1750567839251,-846.39664074,0.00025053,2]
[366911417,1750567839261,-244.36522053,0.00025072,12]
[366911423,1750567839399,-579.37,0.00025095,6]
[366911425,1750567839411,-151.0,0.00025111,7]
[366911427,1750567839420,-2308.00530306,0.00025112,2]
[366911429,1750567839430,-25000.0,0.00025122,2]
[366911431,1750567839439,-244.36522053,0.00025141,12]
[366911433,1750567839448,-250.63982168,0.00025152,2]
[366911435,1750567839457,-201.49781124,0.00025156,2]
[366911436,1750567839467,-151.0,0.00025156,2]
[366911439,1750567839477,-500.0,0.00025156,2]
[366911441,1750567839486,-152.09472765,0.00025156,2]
[366911442,1750567839495,-151.53397057,0.00025156,2]
[366911444,1750567839505,-151.0,0.00025156,2]
[366911447,1750567839515,-151.0,0.00025156,2]
[366911449,1750567839527,-151.29765514,0.00025156,2]
[366911451,1750567839537,-500.0,0.00025173,2]
[366911453,1750567839546,-500.0,0.00025173,2]
[366911455,1750567839556,-500.0,0.00025173,2]
[366911457,1750567839565,-312.88032197,0.00025173,2]
[366911459,1750567839575,-151.0,0.00025183,2]
[366911461,1750567839584,-503.26994281,0.00025183,2]
[366911463,1750567839594,-151.0,0.00025183,2]
[366911465,1750567839603,-151.0,0.00025183,2]
[366911467,1750567839613,-2308.00530306,0.0002519,2]
[366911469,1750567839623,-168.0,0.00025193,2]
[366911471,1750567839632,-579.37,0.00025195,2]
[366911473,1750567839642,-8814.15459706,0.000252,2]
[366911475,1750567839655,-29495.02695165,0.000252,2]
[366911477,1750567839665,-775.38905218,0.0002521,2]
[366912122,1750567844843,-440.56318273,0.00024025,2]
[366912124,1750567844854,-515.67065827,0.00024649,2]
[366912126,1750567844863,-213.59462818,0.00025051,2]
[366912128,1750567844873,-3371.70321082,0.0002521,2]
[366912315,1750567846719,-354138.17072575,0.0002521,2]
[366912322,1750567846773,-13275.2524932,0.00025201,2]
[366912324,1750567846783,-5566.46487651,0.0002521,2]
[366912330,1750567846828,-123804.09947418,0.0002521,2]
[366913434,1750568737146,-168.0,0.00021945,2]
[366913435,1750568737170,-168.0,0.00021982,2]
[366913436,1750568737193,-168.0,0.00022041,2]
[366913437,1750568737215,-168.0,0.00022049,2]
[366913438,1750568737235,-229.1752038,0.00022197,2]
[366913439,1750568737256,-224.98184857,0.00022365,2]
[366913440,1750568737278,-168.0,0.00022474,2]
[366913441,1750568737298,-176.96590268,0.00022568,2]
[366913442,1750568737320,-478.0,0.00022595,2]
[366913443,1750568737342,-168.0,0.00022676,2]
[366913444,1750568737368,-168.0,0.00022701,2]
[366913445,1750568737390,-255.0,0.0002271,2]
[366913446,1750568737410,-269.95764667,0.00022715,2]
[366913447,1750568737435,-168.0,0.00022806,2]
[366913448,1750568737455,-207.4,0.00023249,2]
[366913449,1750568737478,-1688.0,0.00023249,2]
[366913450,1750568737498,-300.0,0.0002326,2]
[366913451,1750568737519,-160.0,0.00023261,2]
[366913452,1750568737539,-846.39664074,0.00023261,2]
[366913453,1750568737560,-425.01221603,0.00023261,2]
[366913454,1750568737581,-836.56272071,0.00023261,2]
[366913455,1750568737602,-213.59462818,0.00023261,2]
[366913456,1750568737622,-300.0,0.00023262,2]
[366913457,1750568737642,-219.56030126,0.00023266,2]
[366913458,1750568737664,-818.12846041,0.00023304,2]
[366913459,1750568737687,-500.0,0.00023347,2]
[366913460,1750568737709,-500.0,0.00023347,2]
[366913461,1750568737730,-500.0,0.00023347,2]
[366913462,1750568737751,-500.0,0.00023347,2]
[366913463,1750568737889,-500.0,0.00023347,2]
[366913464,1750568737911,-633.33150741,0.00023347,2]
[366913465,1750568737933,-367.06885847,0.00023347,2]
[366913466,1750568737955,-199.4557846,0.00023347,2]
[366913467,1750568737979,-500.0,0.00023347,2]
[366913468,1750568738000,-500.0,0.00023347,2]
[366913469,1750568738023,-500.0,0.00023347,2]
[366913470,1750568738044,-500.0,0.00023347,2]
[366913471,1750568738067,-500.0,0.00023347,2]
[366913472,1750568738090,-500.0,0.00023347,2]
[366913473,1750568738113,-465.90562776,0.00023347,2]
[366913474,1750568738135,-605.48320524,0.00023347,2]
[366913475,1750568738156,-500.0,0.00023347,2]
[366913476,1750568738178,-500.0,0.00023347,2]
[366913477,1750568738200,-168.84181992,0.00023347,2]
[366913478,1750568738222,-548.10606185,0.00023347,2]
[366913479,1750568738245,-300.0,0.00023348,2]
[366913480,1750568738268,-300.0,0.00023348,2]
[366913481,1750568738291,-300.0,0.00023348,2]
[366913482,1750568738314,-800.0,0.00023348,2]
[366913483,1750568738336,-300.0,0.00023348,2]
[366913484,1750568738362,-800.0,0.00023348,2]
[366913485,1750568738385,-300.0,0.00023348,2]
[366913486,1750568738408,-800.0,0.00023348,2]
[366913487,1750568738433,-300.0,0.00023348,2]
[366913488,1750568738456,-800.0,0.00023348,2]
[366913489,1750568738480,-300.0,0.00023348,2]
[366913490,1750568738503,-800.0,0.00023348,2]
[366913491,1750568738526,-300.0,0.00023348,2]
[366913492,1750568738548,-300.0,0.00023348,2]
[366913493,1750568738571,-300.0,0.00023348,2]
[366913494,1750568738594,-300.0,0.00023348,2]
[366913495,1750568738617,-300.0,0.00023348,2]
[366913496,1750568738639,-300.0,0.00023348,2]
[366913497,1750568738661,-300.0,0.00023348,2]
[366913498,1750568738684,-300.0,0.00023348,2]
[366913499,1750568738705,-22267.22089098,0.00023348,2]
[366913501,1750568833108,-300.0,0.00023347,2]
[366913502,1750568833130,-223.14771133,0.00023347,2]
[366913503,1750568837128,-76.85228867,0.00023347,2]
[366913504,1750568837150,-765.0196337,0.00023348,2]
[366913506,1750568893548,187.643412,0.00013699,2]
[366913507,1750568947110,-156.8,0.00020187,2]
[366913508,1750568951132,-30.843412,0.00020187,2]
[366913509,1750568951155,-142.46882458,0.00022414,2]
[366913510,1750568966094,-25.53117542,0.00022414,2]
[366913540,1750569032020,-213.59462818,0.00023347,2]
[366913541,1750569032031,-846.39664074,0.00023347,2]
[366913542,1750569032040,-425.01221603,0.00023347,2]
[366913543,1750569032049,-836.56272071,0.00023347,2]
[366913544,1750569032058,-300.0,0.00023347,2]
[366913545,1750569032068,-392.166,0.00023348,3]
[366913546,1750569032077,-460.0,0.0002335,2]
[366913547,1750569032087,-556.76420999,0.0002335,2]
[366913548,1750569032096,-460.0,0.0002335,2]
[366913549,1750569032105,-558.83175593,0.0002335,2]
[366913550,1750569032114,-460.0,0.0002335,2]
[366913551,1750569032123,-3945.76184543,0.0002335,2]
[366913552,1750569032132,-12551.52821599,0.00023357,2]
[366913553,1750569032142,-227.56734021,0.00023357,2]
[366913554,1750569032151,-240.98242444,0.00023357,2]
[366913555,1750569032161,-178.3870228,0.00023357,2]
[366913556,1750569032170,-162.87840308,0.00023357,2]
[366913557,1750569032179,-460.0,0.00023357,2]
[366913558,1750569032188,-460.0,0.00023359,2]
[366913559,1750569032198,-460.0,0.00023362,2]
[366913560,1750569032208,-460.0,0.00023362,2]
[366913561,1750569032217,-435.80291981,0.00023362,2]
[366913562,1750569032226,-446.6266615,0.00023362,2]
[366913563,1750569032236,-460.0,0.00023362,2]
[366913565,1750569032246,-460.0,0.00023362,2]
[366913567,1750569032255,-460.0,0.00023362,2]
[366913569,1750569032265,-452.89968306,0.00023362,2]
[366913571,1750569032274,-460.0,0.00023362,2]
[366913573,1750569032283,-448.55473805,0.00023362,2]
[366913575,1750569032293,-460.0,0.00023362,2]
[366913577,1750569032302,-453.0,0.00023362,2]
[366913579,1750569032312,-460.0,0.00023362,2]
[366913581,1750569032321,-472.46666384,0.00023362,2]
[366913583,1750569032330,-465.46593356,0.00023362,2]
[366913585,1750569032340,-460.0,0.00023362,2]
[366913587,1750569032349,-537.38493426,0.00023362,2]
[366913589,1750569032359,-460.0,0.00023362,2]
[366913591,1750569032369,-465.71452557,0.00023362,2]
[366913593,1750569032379,-160.4038627,0.00023362,2]
[366913595,1750569032388,-460.0,0.00023364,2]
[366913597,1750569032398,-460.0,0.00023364,2]
[366913599,1750569032407,-460.0,0.00023364,2]
[366913601,1750569032417,-460.0,0.00023364,2]
[366913603,1750569032427,-460.0,0.00023364,2]
[366913605,1750569032438,-460.0,0.00023365,2]
[366913607,1750569032447,-462.30673277,0.00023365,2]
[366913609,1750569032456,-460.0,0.00023365,2]
[366913611,1750569032466,-249.85262289,0.00023366,2]
[366913613,1750569032477,-528.05197829,0.00023368,2]
[366913615,1750569032487,-500.0,0.00023373,2]
[366913617,1750569032497,-841.0,0.00023392,3]
[366913619,1750569032506,-843.0,0.00023392,3]
[366913620,1750569032516,-841.0,0.00023392,3]
[366913622,1750569032527,-841.0,0.00023392,3]
[366913624,1750569032536,-841.0,0.00023392,3]
[366913626,1750569032546,-460.0,0.00023604,2]
[366913628,1750569032555,-460.0,0.00023604,2]
[366913630,1750569032566,-460.0,0.00023604,2]
[366913632,1750569032575,-460.0,0.00023604,2]
[366913634,1750569032584,-460.0,0.00023604,2]
[366913636,1750569032594,-207.4,0.00023882,2]
[366913638,1750569032604,-1003.01966123,0.00023895,2]
[366913640,1750569032615,-206.52610883,0.00023895,2]
[366913642,1750569032625,-500.0,0.00023897,7]
[366913644,1750569032634,-203.13115792,0.000239,10]
[366913646,1750569032644,-160.0,0.00023934,2]
[366913648,1750569032654,-160.0,0.0002396,2]
[366913650,1750569032664,-447.0842317,0.00023973,2]
[366913652,1750569032674,-502.67860726,0.00023973,2]
[366913654,1750569032687,-160.0,0.00023982,2]
[366913656,1750569032697,-160.0,0.00023982,2]
[366913659,1750569032709,-160.0,0.00023982,2]
[366913660,1750569032719,-160.0,0.00023983,2]
[366913663,1750569032728,-230.14598372,0.00023983,2]
[366913665,1750569032739,-160.0,0.00023983,2]
[366913666,1750569032749,-300.0,0.00023986,2]
[366913669,1750569032759,-300.0,0.00023986,2]
[366913670,1750569032768,-300.0,0.00023986,2]
[366913672,1750569032777,-300.0,0.00023986,2]
[366913674,1750569032786,-300.0,0.00023986,2]
[366913676,1750569032795,-300.0,0.00023986,2]
[366913678,1750569032804,-300.0,0.00023986,2]
[366913680,1750569032813,-446.62656976,0.00023986,2]
[366913682,1750569032823,-25000.0,0.00023986,2]
[366913684,1750569032832,-5457.27298578,0.00023986,2]
[366913686,1750569032842,-203.13115782,0.00023987,10]
[366913688,1750569032851,-174.3524889,0.0002399,2]
[366913690,1750569032861,-222.16,0.0002399,10]
[366913692,1750569032870,-460.0,0.00023998,2]
[366913694,1750569032880,-469.59595387,0.00023998,2]
[366913696,1750569032889,-590.7045436,0.00023998,2]
[366913698,1750569032900,-468.98989774,0.00023998,2]
[366913700,1750569032910,-420.7459568,0.00023998,2]
[366913702,1750569032919,-462.19014039,0.00023998,2]
[366913704,1750569032933,-460.0,0.00023998,2]
[366913706,1750569032942,-462.75701972,0.00023999,2]
[366913707,1750569032956,-460.0,0.00023999,2]
[366913709,1750569032965,-460.0,0.00023999,2]
[366913711,1750569032975,-535.39421224,0.00023999,2]
[366913713,1750569032985,-460.0,0.00023999,2]
[366913715,1750569032994,-460.0,0.00023999,2]
[366913717,1750569033004,-522.38829266,0.00023999,2]
[366913719,1750569033014,-460.0,0.00023999,2]
[366913721,1750569033024,-30161.0,0.00024,2]
[366913722,1750569033034,-3000.0,0.00024,2]
[366913723,1750569033044,-524.02598587,0.00024,3]
[366913724,1750569033054,-524.02598587,0.00024,3]
[366913726,1750569033063,-3000.0,0.0002401,2]
[366913728,1750569033072,-3000.0,0.0002402,2]
[366913730,1750569033081,-399.105275,0.00024024,2]
[366913732,1750569033090,-440.40712642,0.00024024,2]
[366913734,1750569033100,-460.0,0.00024024,2]
[366913736,1750569033110,-460.0,0.00024024,2]
[366913738,1750569033120,-460.0,0.00024024,2]
[366913740,1750569033132,-465.30442696,0.00024024,2]
[366913742,1750569033142,-500.0,0.00024024,2]
[366913744,1750569033152,-460.0,0.00024024,2]
[366913746,1750569033161,-460.0,0.00024024,2]
[366913748,1750569033171,-460.0,0.00024024,2]
[366913750,1750569033180,-460.0,0.00024025,2]
[366913752,1750569033190,-525.16217926,0.00024025,2]
[366913754,1750569033200,-434.5250493,0.00024025,2]
[366913756,1750569033210,-460.0,0.00024025,2]
[366913758,1750569033220,-460.0,0.00024025,2]
[366913760,1750569033231,-460.0,0.00024025,2]
[366913762,1750569033241,-460.0,0.00024025,2]
[366913764,1750569033252,-460.0,0.00024025,2]
[366913765,1750569033262,-306.80496856,0.00024025,2]
[366913770,1750569033366,-165.02898709,0.00024025,2]
[366913771,1750569033377,-460.0,0.00024025,2]
[366913772,1750569033388,-483.95705021,0.00024025,2]
[366913773,1750569033398,-432.90397531,0.00024025,2]
[366913774,1750569033407,-460.0,0.00024025,2]
[366913775,1750569033418,-460.0,0.00024025,2]
[366913776,1750569033428,-415.43673367,0.00024025,2]
[366913777,1750569033442,-460.0,0.00024025,2]
[366913778,1750569033452,-467.9048388,0.00024025,2]
[366913779,1750569033463,-437.85311221,0.00024025,2]
[366913780,1750569033473,-460.0,0.00024025,2]
[366913781,1750569033484,-472.43704824,0.00024025,2]
[366913782,1750569033495,-310.12944889,0.00024025,2]
[366913783,1750569033505,-464.35270187,0.00024025,2]
[366913784,1750569033516,-460.0,0.00024025,2]
[366913785,1750569033526,-471.5229203,0.00024025,2]
[366913786,1750569033536,-460.0,0.00024025,2]
[366913787,1750569033546,-468.32846107,0.00024025,2]
[366913788,1750569033556,-460.0,0.00024025,2]
[366913789,1750569033566,-467.14229788,0.00024025,2]
[366913790,1750569033576,-460.0,0.00024025,2]
[366913791,1750569033586,-460.0,0.00024025,2]
[366913792,1750569033596,-460.0,0.00024025,2]
[366913793,1750569033606,-460.0,0.00024025,2]
[366913794,1750569033616,-460.0,0.00024025,2]
[366913795,1750569033626,-460.0,0.00024025,2]
[366913796,1750569033635,-434.94553875,0.00024025,2]
[366913797,1750569033645,-460.0,0.00024025,2]
[366913798,1750569033655,-153.11383245,0.0002403,2]
[366913799,1750569033667,-1879.80577995,0.0002403,2]
[366913884,1750569038533,-595.3296522,0.00023985,2]
[366913886,1750569038545,-500.0,0.00023985,2]
[366913888,1750569038555,-500.0,0.00023985,2]
[366913890,1750569038565,-500.0,0.00023985,2]
[366913892,1750569038574,-500.0,0.00023985,2]
[366913894,1750569038584,-500.0,0.00023985,2]
[366913896,1750569038593,-500.0,0.00023985,2]
[366913898,1750569038603,-500.0,0.00023985,2]
[366913900,1750569038613,-576.27518555,0.00023985,2]
[366913901,1750569038622,-500.0,0.00023985,2]
[366913903,1750569038631,-300.41175395,0.00023985,2]
[366913905,1750569038643,-199.58824605,0.00023985,2]
[366913907,1750569038653,-500.0,0.00023985,2]
[366913910,1750569038662,-63.24438217,0.00023985,2]
[366913912,1750569038676,-431.400557,0.00023985,2]
[366913914,1750569038686,-500.0,0.00023985,2]
[366913916,1750569038695,-906.58,0.00024015,3]
[366913917,1750569038705,-185.13,0.00024015,10]
[366913919,1750569038714,-967.0803876,0.0002403,2]
[366913921,1750569038724,-3000.0,0.0002404,2]
[366913924,1750569038734,-3000.0,0.0002405,2]
[366913925,1750569038743,-460.0,0.00024059,2]
[366913927,1750569038753,-3000.0,0.0002406,2]
[366913929,1750569038763,-460.0,0.0002407,2]
[366913931,1750569038772,-3000.0,0.0002407,2]
[366913933,1750569038782,-500.0,0.00024073,2]
[366913935,1750569038791,-500.0,0.00024073,2]
[366913937,1750569038801,-500.0,0.00024073,2]
[366913939,1750569038811,-506.0514979,0.00024073,2]
[366913941,1750569038820,-500.0,0.00024073,2]
[366913943,1750569038830,-203.13115782,0.00024074,10]
[366913945,1750569038839,-1150.9,0.00024074,2]
[366913947,1750569038848,-3479.144436,0.0002408,2]
[366913949,1750569038857,-478.0,0.00024121,2]
[366913951,1750569038866,-478.0,0.00024159,2]
[366913953,1750569038876,-203.13115782,0.00024161,10]
[366913955,1750569038887,-151.0,0.00024205,6]
[366913957,1750569038897,-500.0,0.0002421,2]
[366913959,1750569038906,-203.13115782,0.00024248,10]
[366913961,1750569038916,-203.13115782,0.00024335,11]
[366913963,1750569038926,-151.0,0.00024336,7]
[366913965,1750569038935,-500.0,0.0002441,2]
[366913967,1750569038945,-203.13115782,0.00024422,11]
[366913969,1750569038954,-460.0,0.00024447,2]
[366913971,1750569038964,-151.0,0.00024467,7]
[366913973,1750569038974,-203.13115782,0.00024509,11]
[366913975,1750569038984,-472.70844607,0.00024573,2]
[366913977,1750569038993,-473.83266283,0.00024573,2]
[366913979,1750569039002,-460.0,0.00024573,2]
[366913981,1750569039012,-460.0,0.00024573,2]
[366913983,1750569039021,-203.13115782,0.00024596,11]
[366913985,1750569039031,-151.0,0.00024598,7]
[366913987,1750569039043,-168.61391209,0.00024621,2]
[366913989,1750569039053,-501.35098044,0.00024621,2]
[366913991,1750569039063,-1012.6094612,0.00024621,2]
[366913993,1750569039072,-160.0,0.00024649,2]
[366913995,1750569039081,-460.0,0.00024649,2]
[366913997,1750569039090,-460.0,0.00024649,2]
[366913999,1750569039100,-200.00155733,0.0002465,2]
[366914000,1750569039109,-295.91360495,0.00024658,2]
[366914002,1750569039120,-203.13115782,0.00024683,11]
[366914005,1750569039130,-486.605244,0.00024705,4]
[366914006,1750569039140,-151.0,0.00024729,7]
[366914008,1750569039150,-203.13115782,0.0002477,11]
[366914010,1750569039160,-3923.6090152,0.000248,2]
[366914012,1750569039169,-505.80125923,0.000248,3]